[Event "Julius Baer Generation Cup Prelims 2022"]
[Site "Online"]
[Date "2022.09.14"]
[Round "15.4"]
[White "Le, Quang Liem"]
[Black "Yoo, Christopher Woojin"]
[Result "0-1"]
[ECO "D43"]
[WhiteElo "2728"]
[BlackElo "2563"]
[Annotator "TA"]
[PlyCount "120"]
[EventDate "2022.09.12"]
[EventType "tourn"]
[EventCountry "NET"]
[SourceTitle "playchess.com"]
[Source "ChessBase"]
[SourceQuality "1"]
[TimeControl "900+10"]

{[%evp 13,120,13,16,15,20,0,10,9,6,8,39,37,31,28,38,42,40,42,36,32,46,51,54,67,68,52,47,55,79,0,0,0,17,17,144,0,31,32,40,0,0,-14,-20,-137,-13,-35,-30,-120,-99,-99,-105,-121,-121,-115,-114,-110,-110,-88,-134,-193,-186,-224,-222,-187,-210,-360,-384,-303,-302,-457,-477,-448,-405,-531,-492,-510,-506,-562,-520,-518,-467,-490,-489,-582,-600,-522,-520,-508,-503,-722,-712,-687,-671,-747,-752,-850,-851,-934,-914,-1264,-1226,-1264,-1213,-1145,-1121,-29974,-29975,-29973,-29970]} 1. d4 {[%emt 0:00:00]} Nf6 {[%emt 0:00:00]} 2. Nf3 {[%emt 0:00:02]} d5 {[%emt 0:00:11]} 3. c4 {[%emt 0:00:02]} e6 {[%emt 0:00:02]} 4. Nc3 {[%emt 0:00:01]} c6 {[%emt 0:00:02]} 5. Bg5 {[%emt 0:00:02]} h6 {[%emt 0:00:03]} 6. Bxf6 {[%emt 0:00:03]} Qxf6 {[%emt 0:00:01]} 7. e3 {[%emt 0:00:00]} g6 {[%emt 0:00:07]} 8. Bd3 {[%emt 0:00:11] D43: Semi-Slav: 5 Bg5 h6.} Bg7 {[%emt 0:00:09]} 9. cxd5 {[%emt 0:00:08]} exd5 {[%emt 0:00:03]} 10. b4 {[%emt 0:00:01] The position is equal.} O-O {[%emt 0:00:29] [#]} 11. b5 $146 {[%emt 0:00:43]} ({Predecessor:} 11. O-O a6 12. a4 Bg4 13. h3 Bxf3 14. Qxf3 Qxf3 15. gxf3 Nd7 16. Rfc1 Rfd8 17. Rab1 {1-0 (84) Tan,Z (2508)-Harika,D (2504) China 2017}) 11... c5 {[%emt 0:02:52]} 12. Rc1 {[%emt 0:00:04]} Qd6 {[%emt 0:00:49]} 13. dxc5 {[%emt 0:00:10]} Qxc5 {[%emt 0:00:02] [#]} 14. O-O $1 {[%emt 0:00:09][%cal Od3g6]} Nd7 {[%emt 0:00:58]} (14... Bxc3 15. Qb3 $16) 15. Qb3 {[%emt 0:01:43]} Nb6 {[%emt 0:01:03]} 16. a4 {[%emt 0:00:49][%cal Ba2a4,Ba4a5][%mdl 32] Threatens to win with a5.} Be6 {[%emt 0:01:02]} 17. Nd4 {[%emt 0:00:06]} Qd6 {[%emt 0:01:52]} 18. Nxe6 {[%emt 0:02:21]} Qxe6 {[%emt 0:00:03]} 19. Ne2 {[%emt 0:00:36]} Be5 {[%emt 0:00:59]} 20. a5 {[%emt 0:00:56]} Nd7 {[%emt 0:00:03]} 21. e4 {[%emt 0:00:30]} ({Better is} 21. a6 $16) 21... Qd6 $11 {[%emt 0:01:06]} 22. f4 {[%emt 0:04:28]} Bd4+ {[%emt 0:00:33]} 23. Kh1 {[%emt 0:01:12]} Nc5 {[%emt 0:00:34] [#]} (23... dxe4 $11 {remains equal.} 24. Bxe4 Nc5) 24. Qc2 {[%emt 0:00:03]} ({White should try} 24. Qa3 $1 $16 {And now e5 would win.} Be3 25. e5) 24... Be3 {[%emt 0:00:47]} 25. Rcd1 {[%emt 0:00:43][%cal Od3c4] Bc4! is the strong threat.} Rac8 {[%emt 0:00:58]} 26. e5 {[%emt 0:00:31]} Qe6 {[%emt 0:00:20][%cal Oc5e4]} 27. Qb2 {[%emt 0:00:49]} d4 {[%emt 0:00:20]} 28. Bb1 {[%emt 0:00:38]} (28. Nxd4 $2 Bxd4 29. Qxd4 Rfd8 $19) (28. Qb1 $1 $11) 28... Qc4 {[%emt 0:01:23]} (28... Qb3 $17 29. Qxb3 Nxb3) 29. Ba2 {[%emt 0:00:20]} Na4 $1 {[%emt 0:00:07]} 30. Qb1 {[%emt 0:00:10] Black continues to play with concentration.} (30. Qa3 $1 $11 Qxe2 31. Qxa4) 30... Qc2 $17 {[%emt 0:00:12]} 31. e6 {[%emt 0:01:20]} Qxb1 {[%emt 0:00:38] Black is more active.} 32. exf7+ {[%emt 0:00:01]} (32. Rxb1 $2 {too greedy.} Nc3 33. exf7+ Kg7 $19) 32... Kg7 {[%emt 0:00:05]} 33. Bxb1 {[%emt 0:00:39]} Nb2 $36 {[%emt 0:00:09][%mdl 2048] Black is on the roll.} ({Much less strong is} 33... Rxf7 34. Nxd4 Re8 35. Ba2 $14) 34. Rxd4 {[%emt 0:00:22]} Bxd4 {[%emt 0:00:02]} 35. Nxd4 {[%emt 0:00:00]} Rxf7 {[%emt 0:00:02]} 36. g3 {[%emt 0:00:06]} (36. g4 $17 {was called for.}) 36... Nc4 $19 {[%emt 0:00:05]} 37. Rc1 {[%emt 0:00:32]} Rd7 {[%emt 0:00:28]} 38. Nf3 {[%emt 0:00:01]} Rdc7 {[%emt 0:00:12]} 39. Re1 {[%emt 0:00:17]} (39. Rd1 $142) 39... Nxa5 {[%emt 0:00:07][%cal Bc4a5,Ba5b3,Bb3d4][%mdl 32]} 40. Kg2 {[%emt 0:00:01]} Rc1 {[%emt 0:00:01]} 41. Bd3 {[%emt 0:00:22]} (41. Rxc1 {keeps fighting.} Rxc1 42. Be4) 41... Rxe1 {[%emt 0:00:02]} 42. Nxe1 {[%emt 0:00:00][%mdl 4096] Endgame KRN-KBN} Nb3 {[%emt 0:00:09]} 43. Kf3 {[%emt 0:00:04]} Rc1 {[%emt 0:00:18]} 44. Ke2 {[%emt 0:00:08]} Rc3 {[%emt 0:00:37]} 45. Be4 {[%emt 0:00:16]} Nd4+ {[%emt 0:00:07]} 46. Kd2 {[%emt 0:00:01]} Rc7 {[%emt 0:00:01]} 47. b6 {[%emt 0:00:10]} axb6 {[%emt 0:00:03][%cal Ba7b6,Bb6b5,Bb5b4,Bb4b3,Bb3b2][%mdl 32]} 48. g4 {[%emt 0:00:15]} Re7 {[%emt 0:00:11]} 49. Bd3 {[%emt 0:00:22]} Nb3+ {[%emt 0:00:01]} 50. Kd1 {[%emt 0:00:02]} Nc5 {[%emt 0:00:01]} 51. Bc2 {[%emt 0:00:08]} b5 {[%emt 0:00:11]} 52. Nf3 {[%emt 0:00:02]} b4 {[%emt 0:00:05]} 53. Nh4 {[%emt 0:00:11]} Re6 {[%emt 0:00:12]} 54. f5 {[%emt 0:00:10]} Rd6+ {[%emt 0:00:02]} 55. Ke2 {[%emt 0:00:05]} b3 {[%emt 0:00:04]} 56. Bb1 {[%emt 0:00:04]} g5 {[%emt 0:00:05]} 57. Nf3 {[%emt 0:00:06]} Na4 {[%emt 0:00:06] ( -> ...Nc3+)} 58. Bd3 {[%emt 0:00:09]} Nc3+ {[%emt 0:00:04]} 59. Kd2 {[%emt 0:00:02] [#]} b2 $1 {[%emt 0:00:07]} 60. Kxc3 {[%emt 0:00:05] [#]} Rxd3+ $1 {[%emt 0:00:01][%mdl 512] Weighted Error Value: White=0.32/Black=0.14 (very precise)} 0-1

[Event "Julius Baer Generation Cup Prelims 2022"]
[Site "Online"]
[Date "2022.09.14"]
[Round "15.5"]
[White "Navara, David"]
[Black "Gelfand, Boris"]
[Result "1/2-1/2"]
[ECO "B30"]
[WhiteElo "2681"]
[BlackElo "2668"]
[Annotator "TA"]
[PlyCount "76"]
[EventDate "2022.09.12"]
[EventType "tourn"]
[EventCountry "NET"]
[SourceTitle "playchess.com"]
[Source "ChessBase"]
[SourceQuality "1"]
[TimeControl "900+10"]

{[%evp 12,76,10,-6,0,-3,7,11,15,0,0,-11,-12,-21,-25,-48,-52,-34,-45,-60,-64,-64,-16,-92,-20,-70,-68,-70,-60,-59,-38,-32,-38,-22,-26,-33,-31,-36,0,-44,0,0,-2,-81,-81,-111,-79,-90,-91,-117,-8,-15,0,-69,-83,-41,0,-51,-3,-81,-81,-75,0,-15,0,-72,0]} 1. e4 {[%emt 0:00:00] Szabo,Kr} c5 {[%emt 0:00:00]} 2. Nf3 {[%emt 0:00:02]} Nc6 {[%emt 0:00:01]} 3. Bb5 {[%emt 0:00:01]} e6 {[%emt 0:00:02]} 4. O-O {[%emt 0:00:01]} Nge7 {[%emt 0:00:01]} 5. Re1 {[%emt 0:00:01]} a6 {[%emt 0:00:01]} 6. Bf1 {[%emt 0:00:00]} d5 {[%emt 0:00:02]} 7. d3 {[%emt 0:00:01]} d4 {[%emt 0:00:12] B30: Sicilian: 2...Nc6 3 Bb5, lines without ...g6.} 8. e5 {[%emt 0:00:04]} Nd5 {[%emt 0:00:01]} 9. c4 {[%emt 0:01:31]} dxc3 {[%emt 0:00:02] The position is equal.} 10. bxc3 {[%emt 0:00:00]} Rb8 {[%emt 0:00:04] [#]} 11. c4 $146 {[%emt 0:00:38]} ({Predecessor:} 11. Bb2 b5 12. Nbd2 Be7 13. Ne4 O-O 14. Rb1 Nb6 15. Ba1 Bb7 16. c4 b4 17. Qd2 {½-½ (55) Grischuk,A (2764)-Gelfand,B (2740) London 2013 CBM 154 [Szabo,Kr]}) 11... Nde7 {[%emt 0:00:13]} 12. Nc3 {[%emt 0:01:44]} Nf5 {[%emt 0:00:04]} 13. Bg5 {[%emt 0:01:23]} Be7 {[%emt 0:00:28]} 14. Bxe7 {[%emt 0:00:21]} Qxe7 {[%emt 0:00:04]} 15. Ne4 {[%emt 0:01:42][%cal Od3d4]} O-O {[%emt 0:00:07]} 16. Qd2 {[%emt 0:00:01]} Rd8 {[%emt 0:02:26]} (16... b6 $15) 17. Qf4 {[%emt 0:00:16]} (17. Qg5 $11 {keeps the balance.}) 17... Ncd4 {[%emt 0:03:29]} (17... b6 $17) 18. Rab1 {[%emt 0:02:32]} (18. Nxd4 $11 Nxd4 19. Re3) 18... Nxf3+ $15 {[%emt 0:00:44]} 19. Qxf3 {[%emt 0:00:00]} Bd7 {[%emt 0:00:02]} 20. Nd6 {[%emt 0:03:12]} Nxd6 {[%emt 0:01:42]} (20... Nd4 {with more complications.} 21. Qg3 Bc6 22. Rb6 Qc7) 21. exd6 {[%emt 0:00:00]} Qxd6 {[%emt 0:00:31]} 22. Rxb7 {[%emt 0:00:03]} Rxb7 {[%emt 0:00:13]} 23. Qxb7 {[%emt 0:00:00]} Rb8 {[%emt 0:00:01][%cal Bd8b8,Bb8b2,Bb2a2][%mdl 32]} 24. Qa7 {[%emt 0:00:07][%cal Od3d4]} e5 {[%emt 0:01:31]} 25. g3 {[%emt 0:00:07]} Be6 {[%emt 0:00:40]} 26. Bg2 {[%emt 0:00:11]} g6 {[%emt 0:00:19]} 27. a4 {[%emt 0:01:40]} (27. Bd5 $11) 27... Kg7 $17 {[%emt 0:00:42]} 28. a5 {[%emt 0:00:08]} Rb2 {[%emt 0:02:34]} 29. Bd5 {[%emt 0:00:19]} Bxd5 {[%emt 0:00:38]} 30. cxd5 {[%emt 0:00:00]} Qxd5 {[%emt 0:00:06]} (30... h5 $17 {aiming for ...h4.} 31. h4 Rd2) 31. Qxa6 {[%emt 0:00:02][%mdl 4096] Endgame KQR-KQR} (31. Qe7 Rb5 $15) 31... Ra2 {[%emt 0:00:13]} 32. Qb6 {[%emt 0:00:57]} (32. Qc4 Qxc4 33. dxc4 Kf6 $17) ({White should play} 32. Qb5 $1 $11) 32... Qd4 $15 {[%emt 0:01:27]} (32... Qxd3 33. Qxc5 Kg8 34. Qc8+ (34. Qxe5 Qd2 $11) 34... Kg7 35. Qc5 $11) 33. Rf1 {[%emt 0:00:16]} Qb4 {[%emt 0:00:29]} (33... h5 $5 {[%cal Rh5h4]} 34. a6 h4 $15) 34. Qc7 {[%emt 0:00:51]} (34. Qd6 $11) 34... Qc3 {[%emt 0:00:10]} ({Don't do} 34... Qxa5 35. Qxe5+ Kh6 36. Rc1 $16) 35. Rb1 {[%emt 0:00:01]} (35. Kg2 $1 $11) 35... Qd4 $1 $17 {[%emt 0:00:01]} ({Don't take} 35... Rxa5 36. Rb7 Qa1+ 37. Kg2 $16) 36. Rf1 {[%emt 0:00:06] [#]} Qc3 {[%emt 0:00:09]} ({Better is} 36... h5 $1 $17) 37. Rb1 $11 {[%emt 0:00:19]} Qd4 {[%emt 0:00:10]} ({Don't play} 37... Rxa5 38. Rb7 Qa1+ 39. Kg2 $16) ({Black should try} 37... h5 $11) 38. Rf1 $17 {[%emt 0:00:03] [#]} Qc3 {[%emt 0:00:06] Weighted Error Value: White=0.24 (precise) /Black=0.22 (precise)} (38... h5 $1 $17) 1/2-1/2

[Event "Julius Baer Generation Cup Prelims 2022"]
[Site "Online"]
[Date "2022.09.14"]
[Round "15.6"]
[White "Niemann, Hans Moke"]
[Black "Duda, Jan-Krzysztof"]
[Result "1-0"]
[ECO "B51"]
[WhiteElo "2688"]
[BlackElo "2731"]
[Annotator "TA"]
[PlyCount "111"]
[EventDate "2022.09.12"]
[EventType "tourn"]
[EventCountry "NET"]
[SourceTitle "playchess.com"]
[Source "ChessBase"]
[SourceQuality "1"]
[TimeControl "900+10"]

{[%evp 9,111,21,28,25,19,25,39,26,47,28,20,16,44,41,49,55,45,43,47,40,74,77,76,64,100,113,141,123,131,135,134,131,157,134,177,159,280,270,290,233,257,227,277,266,291,273,287,304,295,285,403,387,477,452,718,710,603,471,466,450,447,445,553,497,475,291,314,287,250,183,343,73,282,282,275,275,258,255,538,596,704,706,680,680,669,650,620,620,12822,12822,12838,12838,12839,12839,12839,12840,12840,12841,12844,12844,12845,12845,12843,2360]} 1. e4 {[%emt 0:00:00]} c5 {[%emt 0:00:00]} 2. Nf3 {[%emt 0:00:04]} d6 {[%emt 0:00:01]} 3. Bb5+ {[%emt 0:00:02]} Nd7 {[%emt 0:00:05]} 4. a4 {[%emt 0:00:31]} Ngf6 {[%emt 0:00:04]} 5. Nc3 {[%emt 0:00:02]} g6 {[%emt 0:00:14]} 6. a5 {[%emt 0:00:11] B51: Sicilian: Moscow Variation (3 Bb5+) without 3...Bd7.} Bg7 {[%emt 0:00:02]} 7. O-O {[%emt 0:00:04]} a6 {[%emt 0:00:09]} 8. Be2 {[%emt 0:00:05] White is slightly better.} O-O {[%emt 0:00:40]} 9. d3 {[%emt 0:00:07]} Nb8 {[%emt 0:00:14]} 10. e5 {[%emt 0:00:02]} dxe5 {[%emt 0:01:25]} 11. Nxe5 {[%emt 0:00:02]} Be6 {[%emt 0:00:00]} 12. Bf3 {[%emt 0:00:26] [#]} Nd5 $146 {[%emt 0:01:55]} ({Predecessor:} 12... Nbd7 13. Bf4 Nxe5 14. Bxe5 Nd5 15. Bxg7 Kxg7 16. Qd2 Rc8 17. Rfe1 Rc7 18. Ra4 Nf6 {1-0 (49) So,W (2778)-Sarana,A (2685) Chess.com INT 2022}) 13. Re1 {[%emt 0:00:05]} Nxc3 {[%emt 0:01:35]} 14. bxc3 {[%emt 0:00:03]} Nc6 {[%emt 0:00:00]} 15. Bxc6 {[%emt 0:01:38]} (15. Nxc6 bxc6 16. Ra3 (16. Bxc6 Rc8 $15) 16... Qd6 $11) 15... bxc6 {[%emt 0:00:00]} 16. Bf4 {[%emt 0:00:42]} (16. Nxc6 $2 Qd6 17. Nxe7+ Qxe7 $19) 16... Qc8 {[%emt 0:02:48][%cal Oc5c4]} 17. c4 {[%emt 0:00:08] White is more active.} g5 {[%emt 0:00:11]} 18. Bd2 {[%emt 0:00:49]} (18. Bxg5 f6 $11) 18... f6 {[%emt 0:00:32]} 19. Nf3 {[%emt 0:00:04]} g4 {[%emt 0:00:06]} 20. Nh4 {[%emt 0:00:27]} Re8 {[%emt 0:01:12]} 21. Qe2 {[%emt 0:00:52]} Bf7 {[%emt 0:00:28]} 22. f3 {[%emt 0:00:23]} h5 {[%emt 0:01:21]} (22... f5 $16) 23. fxg4 $18 {[%emt 0:00:03]} hxg4 {[%emt 0:00:35]} 24. Qf2 {[%emt 0:00:08] Against f5} e6 {[%emt 0:00:38] [#]} 25. Bc3 $1 {[%emt 0:00:03]} (25. Qxc5 f5 $14) 25... e5 {[%emt 0:00:01]} 26. Nf5 {[%emt 0:00:03]} (26. Qxc5 $6 Rb8 27. Qf2 Be6 $16) 26... Qe6 {[%emt 0:00:17]} 27. Rab1 {[%emt 0:00:52]} Bg6 {[%emt 0:00:52]} 28. Nxg7 {[%emt 0:00:03]} Kxg7 {[%emt 0:00:00]} 29. Qxc5 {[%emt 0:00:00]} Bf5 {[%emt 0:01:22]} (29... Qd7 {was called for.} 30. Rb6 Re6) 30. Rb6 {[%emt 0:00:22]} Qe7 {[%emt 0:00:11]} 31. Qf2 {[%emt 0:00:27]} Qd7 {[%emt 0:00:13]} (31... Be6 $142 32. Rxc6 Qa7) 32. Rf1 {[%emt 0:00:19]} Kg6 {[%emt 0:00:02]} 33. d4 {[%emt 0:01:14]} exd4 {[%emt 0:00:17]} 34. Bxd4 {[%emt 0:00:03][%cal Ob6c6]} Re4 {[%emt 0:00:52]} 35. c3 {[%emt 0:00:11][%cal Ob6b7] And now Rb7! would win.} Rf8 {[%emt 0:00:53][%cal Ba8f8,Bf8f7,Bf7h7][%mdl 32] [#]} 36. Rb7 $3 {[%emt 0:01:02][%mdl 512]} Qe6 {[%emt 0:00:15]} 37. Qh4 {[%emt 0:00:20]} Rf7 {[%emt 0:00:02] Against Rh7} 38. Rb8 {[%emt 0:00:46] Threatening mate with Rh8.} Rh7 {[%emt 0:00:11]} 39. Qg3 $40 {[%emt 0:00:41][%mdl 128] h4 is the strong threat. White goes for the king.} ({Not} 39. Rg8+ Kf7 40. Qf2 Kxg8 $17) 39... Re2 $2 {[%emt 0:00:18]} (39... Re7 40. Rf8 Rf7) 40. Qf4 $2 {[%emt 0:00:58]} ({Don't play} 40. Rf8 $6 Rf7 41. Rg8+ Kh7 $18) (40. h3 $18) 40... Be4 $2 {[%emt 0:01:19] A mistake that costs the game.} (40... Re1 $16 {keeps fighting.} 41. h4 Re7) 41. Qxf6+ {[%emt 0:00:18]} Qxf6 {[%emt 0:00:01]} 42. Rxf6+ {[%emt 0:00:01]} Kh5 {[%emt 0:00:04] [#]} 43. Re8 $1 {[%emt 0:01:01] Intending Re5+ and mate.} Rxg2+ $2 {[%emt 0:00:20]} (43... Bf3) 44. Kf1 {[%emt 0:00:01] White is clearly winning.} Bf3 {[%emt 0:00:02]} 45. Re5+ {[%emt 0:00:03]} Kh4 {[%emt 0:00:01]} 46. Bf2+ {[%emt 0:00:03]} Kh3 {[%emt 0:00:10]} 47. Rff5 {[%emt 0:00:07] White threatens Rh5+ and mate.} g3 {[%emt 0:00:29]} 48. Rxf3 {[%emt 0:00:50][%cal Rf2g3]} Kxh2 {[%emt 0:00:01]} 49. Be3 {[%emt 0:01:06]} Kh1 {[%emt 0:00:20]} 50. Rg5 {[%emt 0:00:44]} Rb7 {[%emt 0:00:13]} 51. Rh5+ {[%emt 0:00:50]} Rh2 {[%emt 0:00:03]} 52. Rxh2+ {[%emt 0:00:33]} gxh2 {[%emt 0:00:00]} 53. Bf4 {[%emt 0:00:03]} ({Weaker is} 53. Rh3 Rf7+ 54. Bf2 c5 $11) 53... c5 {[%emt 0:00:29]} 54. Rh3 {[%emt 0:00:39][%csl Gf4][%cal Rh3h2]} Rb1+ {[%emt 0:00:06]} 55. Ke2 {[%emt 0:00:09]} Rb2+ {[%emt 0:00:31]} 56. Kd3 {[%emt 0:00:05] Weighted Error Value: White=0.30/Black=0.49} 1-0

[Event "Julius Baer Generation Cup Prelims 2022"]
[Site "Online"]
[Date "2022.09.14"]
[Round "15.7"]
[White "Aronian, Levon"]
[Black "Ivanchuk, Vasyl"]
[Result "1-0"]
[ECO "D02"]
[WhiteElo "2759"]
[BlackElo "2678"]
[Annotator "TA"]
[PlyCount "105"]
[EventDate "2022.09.12"]
[EventType "tourn"]
[EventCountry "NET"]
[SourceTitle "playchess.com"]
[Source "ChessBase"]
[SourceQuality "1"]
[TimeControl "900+10"]

{[%evp 9,105,2,16,12,13,20,21,18,28,20,24,24,27,31,35,18,29,27,34,28,54,47,55,69,52,61,46,41,62,79,72,86,95,83,138,137,132,137,116,113,106,61,54,36,31,37,19,19,20,19,25,24,19,20,35,31,25,0,0,0,11,9,45,0,0,-9,-5,-4,-5,0,0,-614,-614,-613,-111,-111,-4,-8,-5,-13,0,0,0,0,0,0,0,0,0,0,0,0,0,0,29981,29982,29982,29983]} 1. d4 {[%emt 0:00:00]} d5 {[%emt 0:00:00]} 2. Bf4 {[%emt 0:00:02]} e6 {[%emt 0:00:11]} 3. e3 {[%emt 0:00:05]} c5 {[%emt 0:00:13]} 4. Nf3 {[%emt 0:00:04]} Nc6 {[%emt 0:00:05]} 5. Nbd2 {[%emt 0:00:02]} Bd6 {[%emt 0:00:03]} 6. dxc5 {[%emt 0:00:01] D02: 1 d4 d5 2 Nf3 sidelines, including 2...Nf6 3 g3 and 2...Nf6 3 Bf4.} Bxc5 {[%emt 0:00:04] [#]} 7. a3 $146 {[%emt 0:00:11]} ({Predecessor:} 7. Be2 Nge7 8. O-O O-O 9. c4 b6 10. a3 a5 11. cxd5 Nxd5 12. Bg3 Bb7 13. Rc1 {1-0 (39) Demchenko,A (2641)-Abdusattorov,N (2627) Chess.com INT 2020}) 7... Bd6 {[%emt 0:00:15]} 8. Bxd6 {[%emt 0:00:01] The position is equal.} Qxd6 {[%emt 0:00:01]} 9. c4 {[%emt 0:00:01]} Nf6 {[%emt 0:00:38]} 10. cxd5 {[%emt 0:00:12]} exd5 {[%emt 0:00:01]} 11. Rc1 {[%emt 0:00:18]} O-O {[%emt 0:00:09]} 12. Bb5 {[%emt 0:00:01]} Bg4 {[%emt 0:00:14]} 13. h3 {[%emt 0:01:21]} Bh5 {[%emt 0:00:03]} 14. O-O {[%emt 0:00:01]} Rfd8 {[%emt 0:01:34]} 15. Bxc6 {[%emt 0:01:06]} bxc6 {[%emt 0:00:12]} 16. Qc2 {[%emt 0:00:01] Inhibits c5.} Rac8 {[%emt 0:00:36]} 17. Qc5 {[%emt 0:00:04] aiming for Nd4.} Bxf3 {[%emt 0:00:31]} 18. Nxf3 {[%emt 0:00:03]} Qxc5 {[%emt 0:00:02]} 19. Rxc5 {[%emt 0:00:01]} Ne4 {[%emt 0:00:01]} 20. Ra5 {[%emt 0:00:21]} Rc7 {[%emt 0:00:13]} 21. b4 {[%emt 0:00:25]} Nd6 {[%emt 0:00:19]} (21... h5 $142) 22. Nd4 $16 {[%emt 0:00:12]} Rdc8 {[%emt 0:00:34]} 23. Rc1 {[%emt 0:00:20]} Kf8 {[%emt 0:00:02]} 24. Ra6 {[%emt 0:00:58][%cal Rc1c6] White is much more active. The black rooks are badly placed.} Nc4 {[%emt 0:00:04]} 25. e4 {[%emt 0:00:01]} g6 {[%emt 0:00:24]} 26. f4 {[%emt 0:01:21]} c5 {[%emt 0:01:04]} 27. bxc5 {[%emt 0:03:19]} Rxc5 {[%emt 0:00:03]} 28. e5 {[%emt 0:00:01]} Nd2 {[%emt 0:01:11]} 29. Rxc5 {[%emt 0:00:20]} Rxc5 {[%emt 0:00:02]} 30. Rxa7 $11 {[%emt 0:00:04][%mdl 4096] Endgame KRN-KRN} Rc4 {[%emt 0:00:00]} 31. Ne2 {[%emt 0:00:23]} d4 {[%emt 0:00:32] And now ...d3 would win.} 32. Rd7 {[%emt 0:00:03]} Nb3 {[%emt 0:00:05]} 33. Ng3 {[%emt 0:01:44]} Nc5 {[%emt 0:00:14] Against Ne4} 34. Rd5 {[%emt 0:00:23]} d3 {[%emt 0:02:53]} 35. Nf1 {[%emt 0:00:24]} Rc3 {[%emt 0:00:50]} 36. g3 {[%emt 0:00:01]} Ne4 {[%emt 0:00:45]} 37. a4 {[%emt 0:00:46]} d2 {[%emt 0:00:30] Threatens to win with ...Rc1.} 38. Kg2 $1 {[%emt 0:00:26]} ({Much worse is} 38. Nxd2 Rc1+ 39. Nf1 Nxg3 $17) 38... Ra3 {[%emt 0:01:28]} 39. Rd4 {[%emt 0:00:15]} ({But not} 39. Nxd2 $2 Ra2 40. Rb5 (40. Rd8+ $2 Ke7 $19) 40... Nxd2 $19) 39... Rxa4 {[%emt 0:00:09][%mdl 64] Promotion} 40. Rxa4 {[%emt 0:00:40][%mdl 8192]} (40. Rd7 $11) 40... d1=Q $19 {[%emt 0:00:04] ( -> ...Qe2+)} 41. Rxe4 {[%emt 0:00:01] [#] KQ-KRN} Qd5 $2 {[%emt 0:03:26]} (41... Qc2+ $1 $19 {and Black stays clearly on top.} 42. Kf3 Qb1) 42. Kf3 $17 {[%emt 0:00:02] [#]} h5 {[%emt 0:00:01]} (42... Qd3+ $1 $17 43. Ne3 Qb1) 43. Ne3 $11 {[%emt 0:00:14]} Qc6 {[%emt 0:00:02]} 44. f5 {[%emt 0:00:15]} g5 {[%emt 0:00:28][%mdl 1024] ...Qc1 is the strong threat. Black has compensation.} 45. e6 {[%emt 0:00:16]} f6 {[%emt 0:02:12]} 46. e7+ {[%emt 0:00:02]} Ke8 {[%emt 0:00:01]} 47. Nc4 {[%emt 0:00:06]} Qd5 {[%emt 0:00:04]} 48. Ke3 {[%emt 0:00:02]} Qc5+ {[%emt 0:00:02]} 49. Kd3 {[%emt 0:00:02]} Qd5+ {[%emt 0:00:12]} 50. Kc3 {[%emt 0:00:01]} Qc5 {[%emt 0:00:03]} 51. Re6 {[%emt 0:00:07]} Qc7 $2 {[%emt 0:00:27][%mdl 8192]} (51... h4 $11 52. g4 Qc7) 52. Kd4 {[%emt 0:00:32]} Qa7+ {[%emt 0:00:11]} 53. Kd3 {[%emt 0:00:01] What a bad dream for Black.  Weighted Error Value: White=0.17 (very precise) /Black=0.36} 1-0